[Event "*** SCC Grand Prix: Titled Tuesday Blitz"]
[Site "Chess.com"]
[Date "2020.09.08"]
[Round "7"]
[White "Kazmin_Dmitrij"]
[Black "kinga2008"]
[Result "1-0"]
[WhiteElo "2280"]
[BlackElo "2127"]
[TimeControl "180+1"]
[EndTime "11:17:33 PDT"]
[Termination "Kazmin_Dmitrij won by resignation"]

1. e4 {[%clk 0:03:00.9]} 1... c5 {[%clk 0:03:00.9]} 2. Nf3 {[%clk 0:02:58.6]}
2... e6 {[%clk 0:03:01.3]} 3. d4 {[%clk 0:02:57.1]} 3... cxd4 {[%clk 0:03:01.3]}
4. Nxd4 {[%clk 0:02:57]} 4... a6 {[%clk 0:03:00.3]} 5. c4 {[%clk 0:02:35]} 5...
Nc6 {[%clk 0:02:58.1]} 6. Nc3 {[%clk 0:02:33.2]} 6... Nf6 {[%clk 0:02:57.2]} 7.
Be3 {[%clk 0:02:27.8]} 7... Bb4 {[%clk 0:02:55.4]} 8. Bd3 {[%clk 0:02:16.4]}
8... Ne5 {[%clk 0:02:49.6]} 9. O-O {[%clk 0:02:09.8]} 9... O-O {[%clk
0:02:37.7]} 10. Nde2 {[%clk 0:01:53.7]} 10... d5 {[%clk 0:02:22.6]} 11. cxd5
{[%clk 0:01:51.3]} 11... exd5 {[%clk 0:02:00]} 12. Nxd5 {[%clk 0:01:37.2]} 12...
Nxd5 {[%clk 0:01:57.4]} 13. exd5 {[%clk 0:01:36.3]} 13... Bg4 {[%clk 0:01:55.2]}
14. f3 {[%clk 0:01:29.9]} 14... Bh5 {[%clk 0:01:45.7]} 15. Nf4 {[%clk 0:01:21]}
15... Bg6 {[%clk 0:01:39.8]} 16. Nxg6 {[%clk 0:01:19.4]} 16... hxg6 {[%clk
0:01:38.8]} 17. Be4 {[%clk 0:01:05.8]} 17... Re8 {[%clk 0:01:30.6]} 18. Bf2
{[%clk 0:00:47]} 18... f5 {[%clk 0:01:27.4]} 19. Bc2 {[%clk 0:00:45]} 19... Qd6
{[%clk 0:01:25.3]} 20. Bb3 {[%clk 0:00:43.6]} 20... Rad8 {[%clk 0:01:24.5]} 21.
Qd4 {[%clk 0:00:37.1]} 21... Nd7 {[%clk 0:01:16.7]} 22. Rac1 {[%clk 0:00:34.9]}
22... Bc5 {[%clk 0:01:15.8]} 23. Rxc5 {[%clk 0:00:33.3]} 23... Nxc5 {[%clk
0:01:15.3]} 24. Qxc5 {[%clk 0:00:33.7]} 24... Qxc5 {[%clk 0:01:16.2]} 25. Bxc5
{[%clk 0:00:33.8]} 25... Re2 {[%clk 0:01:16.9]} 26. d6+ {[%clk 0:00:33.4]} 26...
Kh7 {[%clk 0:01:14.8]} 27. Rd1 {[%clk 0:00:30.8]} 27... Rd7 {[%clk 0:01:13.2]}
28. Bc4 {[%clk 0:00:26.6]} 28... Rxb2 {[%clk 0:01:08.7]} 29. Be6 {[%clk
0:00:25.2]} 29... Rd8 {[%clk 0:01:08]} 30. d7 {[%clk 0:00:24.5]} 30... Re2
{[%clk 0:00:57.1]} 31. Bb6 {[%clk 0:00:22.9]} 1-0

[Event "*** SCC Grand Prix: Titled Tuesday Blitz"]
[Site "Chess.com"]
[Date "2020.09.08"]
[Round "7"]
[White "snap_man"]
[Black "rududuyk"]
[Result "1-0"]
[WhiteElo "2288"]
[BlackElo "2133"]
[TimeControl "180+1"]
[EndTime "11:17:35 PDT"]
[Termination "snap_man won on time"]

1. Nf3 {[%clk 0:02:52.6]} 1... e6 {[%clk 0:02:57.7]} 2. g3 {[%clk 0:02:53.4]}
2... f5 {[%clk 0:02:55.5]} 3. Bg2 {[%clk 0:02:53.6]} 3... Nf6 {[%clk 0:02:56]}
4. b3 {[%clk 0:02:54.2]} 4... Be7 {[%clk 0:02:54.7]} 5. Bb2 {[%clk 0:02:54.7]}
5... O-O {[%clk 0:02:54.9]} 6. O-O {[%clk 0:02:55.5]} 6... d6 {[%clk 0:02:54.6]}
7. d4 {[%clk 0:02:55]} 7... Ne4 {[%clk 0:02:49.2]} 8. c4 {[%clk 0:02:54.9]} 8...
a5 {[%clk 0:02:41]} 9. Nfd2 {[%clk 0:02:54]} 9... d5 {[%clk 0:02:31.6]} 10. f3
{[%clk 0:02:53.8]} 10... Nd6 {[%clk 0:02:14.5]} 11. c5 {[%clk 0:02:51.6]} 11...
Ne8 {[%clk 0:02:12.1]} 12. e4 {[%clk 0:02:50.6]} 12... c6 {[%clk 0:02:03.7]} 13.
e5 {[%clk 0:02:36.9]} 13... f4 {[%clk 0:01:58.2]} 14. Nc3 {[%clk 0:02:36]} 14...
g5 {[%clk 0:01:42.9]} 15. Na4 {[%clk 0:02:32.4]} 15... Nd7 {[%clk 0:01:33.7]}
16. a3 {[%clk 0:02:31.8]} 16... Ng7 {[%clk 0:01:31.4]} 17. b4 {[%clk 0:02:31.7]}
17... axb4 {[%clk 0:01:22]} 18. axb4 {[%clk 0:02:30.7]} 18... Nf5 {[%clk
0:01:21.1]} 19. Qb3 {[%clk 0:02:21]} 19... fxg3 {[%clk 0:01:17.6]} 20. h3 {[%clk
0:02:12.8]} 20... Qe8 {[%clk 0:01:01.7]} 21. b5 {[%clk 0:02:10.8]} 21... cxb5
{[%clk 0:00:40.6]} 22. Qxb5 {[%clk 0:02:10.1]} 22... Ne3 {[%clk 0:00:40.1]} 23.
Rfc1 {[%clk 0:02:01.4]} 23... Qh5 {[%clk 0:00:34.7]} 24. Nb6 {[%clk 0:01:49.2]}
24... Rxa1 {[%clk 0:00:31.7]} 25. Bxa1 {[%clk 0:01:47.8]} 25... Nxb6 {[%clk
0:00:18.9]} 26. cxb6 {[%clk 0:01:47.6]} 26... Qh4 {[%clk 0:00:13.6]} 27. Rc7
{[%clk 0:01:43.3]} 27... g4 {[%clk 0:00:11.2]} 28. fxg4 {[%clk 0:01:21.4]} 28...
Nxg2 {[%clk 0:00:06.3]} 29. Nf3 {[%clk 0:01:19.9]} 29... Qxh3 {[%clk 0:00:03]}
30. Rxe7 {[%clk 0:01:15.8]} 1-0

[Event "*** SCC Grand Prix: Titled Tuesday Blitz"]
[Site "Chess.com"]
[Date "2020.09.08"]
[Round "7"]
[White "Chessbard1972"]
[Black "AntonovaNadezhda"]
[Result "0-1"]
[WhiteElo "2330"]
[BlackElo "2055"]
[TimeControl "180+1"]
[EndTime "11:17:35 PDT"]
[Termination "AntonovaNadezhda won by resignation"]

1. e4 {[%clk 0:03:00.9]} 1... d6 {[%clk 0:02:59.4]} 2. d4 {[%clk 0:02:59.8]}
2... Nf6 {[%clk 0:03:00]} 3. Nc3 {[%clk 0:02:59.5]} 3... e5 {[%clk 0:03:00.5]}
4. Nf3 {[%clk 0:02:58.6]} 4... Nbd7 {[%clk 0:02:59.4]} 5. g4 {[%clk 0:02:58]}
5... Nxg4 {[%clk 0:02:52.3]} 6. Rg1 {[%clk 0:02:57.3]} 6... Ngf6 {[%clk
0:02:52]} 7. Bg5 {[%clk 0:02:54]} 7... c6 {[%clk 0:02:51.3]} 8. Qd2 {[%clk
0:02:52.6]} 8... b5 {[%clk 0:02:44]} 9. a3 {[%clk 0:02:50.4]} 9... Bb7 {[%clk
0:02:40.9]} 10. O-O-O {[%clk 0:02:47.1]} 10... Be7 {[%clk 0:02:40.4]} 11. Be3
{[%clk 0:02:44.4]} 11... Nh5 {[%clk 0:02:27.2]} 12. Be2 {[%clk 0:02:40.8]} 12...
a5 {[%clk 0:02:23.8]} 13. Ng5 {[%clk 0:02:36.4]} 13... Nhf6 {[%clk 0:02:20.7]}
14. Nh3 {[%clk 0:02:22.3]} 14... b4 {[%clk 0:02:19.7]} 15. Nb1 {[%clk
0:02:05.6]} 15... Nxe4 {[%clk 0:02:15.7]} 16. Qd3 {[%clk 0:02:05.1]} 16... d5
{[%clk 0:02:15.8]} 17. Rxg7 {[%clk 0:01:56.2]} 17... Ba6 {[%clk 0:02:14]} 18.
Qxa6 {[%clk 0:01:51.2]} 18... Rxa6 {[%clk 0:02:13.2]} 19. Bxa6 {[%clk 0:01:51]}
19... exd4 {[%clk 0:02:05.2]} 20. Bxd4 {[%clk 0:01:40.3]} 20... Bf6 {[%clk
0:02:03.7]} 21. Bxf6 {[%clk 0:01:34.5]} 21... Qxf6 {[%clk 0:02:02.1]} 22. Rdg1
{[%clk 0:01:33.1]} 22... Qh6+ {[%clk 0:01:54.6]} 23. Kd1 {[%clk 0:01:23.9]}
23... Qxh3 {[%clk 0:01:53.3]} 24. Ke2 {[%clk 0:01:20.1]} 24... Qxh2 {[%clk
0:01:47.6]} 25. R1g2 {[%clk 0:01:16.8]} 25... Qh5+ {[%clk 0:01:46.8]} 26. f3
{[%clk 0:01:16.3]} 26... Ne5 {[%clk 0:01:38.7]} 27. Nd2 {[%clk 0:01:07.9]} 27...
Nxd2 {[%clk 0:01:32.9]} 28. Kxd2 {[%clk 0:01:07.8]} 28... Nxf3+ {[%clk
0:01:29.8]} 29. Ke3 {[%clk 0:01:07.6]} 29... Nh4 {[%clk 0:01:11.4]} 30. R2g5
{[%clk 0:01:03.9]} 30... Qf3+ {[%clk 0:01:05.6]} 31. Kd4 {[%clk 0:01:03.8]}
31... Nf5+ {[%clk 0:01:03.3]} 32. Rxf5 {[%clk 0:01:00.5]} 32... Qxf5 {[%clk
0:01:02.6]} 33. Kc5 {[%clk 0:00:58.9]} 33... h5 {[%clk 0:00:57.7]} 34. Bb7
{[%clk 0:00:55.2]} 34... Qf2+ {[%clk 0:00:49.9]} 35. Kxc6 {[%clk 0:00:49.9]}
35... Qf6+ {[%clk 0:00:49.5]} 36. Kxd5 {[%clk 0:00:49.8]} 36... Qxg7 {[%clk
0:00:49.4]} 37. axb4 {[%clk 0:00:49.3]} 37... axb4 {[%clk 0:00:48.1]} 38. Bc6+
{[%clk 0:00:48.6]} 38... Ke7 {[%clk 0:00:48.1]} 0-1

[Event "*** SCC Grand Prix: Titled Tuesday Blitz"]
[Site "Chess.com"]
[Date "2020.09.08"]
[Round "7"]
[White "RaunakSadhwani2005"]
[Black "13MiRacLe"]
[Result "1-0"]
[WhiteElo "2856"]
[BlackElo "2598"]
[TimeControl "180+1"]
[EndTime "11:17:37 PDT"]
[Termination "RaunakSadhwani2005 won by resignation"]

1. e4 {[%clk 0:03:00.9]} 1... e5 {[%clk 0:02:59.8]} 2. Nf3 {[%clk 0:03:00.7]}
2... Nc6 {[%clk 0:03:00.4]} 3. g3 {[%clk 0:03:01]} 3... Nf6 {[%clk 0:02:59.8]}
4. d3 {[%clk 0:03:01.5]} 4... Bc5 {[%clk 0:02:58.6]} 5. Bg2 {[%clk 0:03:01.7]}
5... d5 {[%clk 0:02:50]} 6. exd5 {[%clk 0:03:01.5]} 6... Nxd5 {[%clk 0:02:50.9]}
7. O-O {[%clk 0:03:01.7]} 7... O-O {[%clk 0:02:49.7]} 8. Re1 {[%clk 0:03:01.5]}
8... Bg4 {[%clk 0:02:42.3]} 9. h3 {[%clk 0:03:00]} 9... Bh5 {[%clk 0:02:42.6]}
10. Nbd2 {[%clk 0:02:57.9]} 10... f5 {[%clk 0:02:31]} 11. c3 {[%clk 0:02:55.3]}
11... Bb6 {[%clk 0:02:25.2]} 12. Qb3 {[%clk 0:02:53]} 12... Bf7 {[%clk
0:02:17.7]} 13. Nc4 {[%clk 0:02:46.6]} 13... Nf6 {[%clk 0:02:01.9]} 14. Ng5
{[%clk 0:02:34.9]} 14... Bd5 {[%clk 0:01:49.4]} 15. Bxd5+ {[%clk 0:02:32.8]}
15... Qxd5 {[%clk 0:01:50.3]} 16. Nxe5 {[%clk 0:02:30]} 16... Qxb3 {[%clk
0:01:39.7]} 17. axb3 {[%clk 0:02:29.8]} 17... Rae8 {[%clk 0:01:06.8]} 18. Ngf3
{[%clk 0:02:25.1]} 18... Re6 {[%clk 0:00:36.9]} 19. Nxc6 {[%clk 0:02:22.9]}
19... Rxc6 {[%clk 0:00:33.4]} 20. d4 {[%clk 0:02:22.9]} 20... Ne4 {[%clk
0:00:32.4]} 21. Bf4 {[%clk 0:02:21.8]} 21... Re6 {[%clk 0:00:26.3]} 22. Ng5
{[%clk 0:02:17]} 22... Nxg5 {[%clk 0:00:23.1]} 23. Bxg5 {[%clk 0:02:17.9]} 23...
Rfe8 {[%clk 0:00:16.9]} 24. Rxe6 {[%clk 0:02:18.1]} 24... Rxe6 {[%clk 0:00:17]}
25. Kf1 {[%clk 0:02:19]} 25... h6 {[%clk 0:00:17.5]} 26. Bd2 {[%clk 0:02:18]}
26... c6 {[%clk 0:00:15.2]} 27. Re1 {[%clk 0:02:18.4]} 27... Kf7 {[%clk
0:00:15.6]} 28. Rxe6 {[%clk 0:02:18.1]} 28... Kxe6 {[%clk 0:00:16.5]} 29. Ke2
{[%clk 0:02:19]} 29... Kd5 {[%clk 0:00:16.2]} 30. Kd3 {[%clk 0:02:19.3]} 30...
Bc7 {[%clk 0:00:15.2]} 31. c4+ {[%clk 0:02:17.4]} 31... Ke6 {[%clk 0:00:15.6]}
32. Bc3 {[%clk 0:02:18.3]} 32... g5 {[%clk 0:00:15.4]} 33. b4 {[%clk 0:02:17.2]}
33... g4 {[%clk 0:00:15.5]} 34. hxg4 {[%clk 0:02:15.5]} 34... fxg4 {[%clk
0:00:16.4]} 35. Ke4 {[%clk 0:02:16.2]} 35... h5 {[%clk 0:00:15.8]} 36. d5+
{[%clk 0:02:16.6]} 36... cxd5+ {[%clk 0:00:15.9]} 37. cxd5+ {[%clk 0:02:17.5]}
37... Kd7 {[%clk 0:00:15.2]} 38. Be5 {[%clk 0:02:17.1]} 38... Bd8 {[%clk
0:00:08.6]} 39. Bd4 {[%clk 0:02:17.5]} 39... a6 {[%clk 0:00:08.8]} 40. Be5
{[%clk 0:01:58]} 40... Be7 {[%clk 0:00:08.9]} 41. b5 {[%clk 0:01:58]} 41... axb5
{[%clk 0:00:08.9]} 42. Kf5 {[%clk 0:01:58.6]} 42... Bc5 {[%clk 0:00:07.9]} 43.
Kg5 {[%clk 0:01:56.8]} 43... Bxf2 {[%clk 0:00:08]} 44. Kxh5 {[%clk 0:01:57.1]}
44... b4 {[%clk 0:00:02.2]} 45. b3 {[%clk 0:01:55.5]} 45... Be3 {[%clk
0:00:01.1]} 46. Kxg4 {[%clk 0:01:55.6]} 46... b6 {[%clk 0:00:01.7]} 47. Kf5
{[%clk 0:01:56]} 47... b5 {[%clk 0:00:01.4]} 48. g4 {[%clk 0:01:56.9]} 48... Bh6
{[%clk 0:00:02]} 49. g5 {[%clk 0:01:57.3]} 49... Bf8 {[%clk 0:00:02.9]} 50. g6
{[%clk 0:01:57.8]} 1-0

[Event "*** SCC Grand Prix: Titled Tuesday Blitz"]
[Site "Chess.com"]
[Date "2020.09.08"]
[Round "7"]
[White "Korchmar_Vasiliy"]
[Black "LubovMarkelova"]
[Result "1-0"]
[WhiteElo "2618"]
[BlackElo "2242"]
[TimeControl "180+1"]
[EndTime "11:17:39 PDT"]
[Termination "Korchmar_Vasiliy won by resignation"]

1. d4 {[%clk 0:03:00.9]} 1... d5 {[%clk 0:02:58.2]} 2. Nf3 {[%clk 0:03:01.3]}
2... Nf6 {[%clk 0:02:57.9]} 3. Bf4 {[%clk 0:03:01.9]} 3... c5 {[%clk 0:02:57.1]}
4. e3 {[%clk 0:03:02.3]} 4... Nc6 {[%clk 0:02:56.4]} 5. Nbd2 {[%clk 0:03:02.7]}
5... Qb6 {[%clk 0:02:52.1]} 6. dxc5 {[%clk 0:03:02.9]} 6... Qxb2 {[%clk
0:02:37.1]} 7. Rb1 {[%clk 0:03:02.7]} 7... Qc3 {[%clk 0:02:34.9]} 8. Bb5 {[%clk
0:03:03.6]} 8... Qxc5 {[%clk 0:02:29.1]} 9. O-O {[%clk 0:03:01.6]} 9... a6
{[%clk 0:02:24.4]} 10. Bd3 {[%clk 0:02:54.2]} 10... e6 {[%clk 0:02:19.7]} 11. e4
{[%clk 0:02:30.5]} 11... dxe4 {[%clk 0:02:14.7]} 12. Nxe4 {[%clk 0:02:31.4]}
12... Nxe4 {[%clk 0:02:14.3]} 13. Bxe4 {[%clk 0:02:32.3]} 13... Be7 {[%clk
0:02:09.6]} 14. Qd3 {[%clk 0:02:20.5]} 14... Nb4 {[%clk 0:01:51.5]} 15. Qe2
{[%clk 0:01:59.2]} 15... O-O {[%clk 0:01:41.9]} 16. Ne5 {[%clk 0:01:59.4]} 16...
Nd5 {[%clk 0:01:39.7]} 17. Bd2 {[%clk 0:01:49.5]} 17... Bf6 {[%clk 0:01:14.4]}
18. Bd3 {[%clk 0:01:09.1]} 18... Nc3 {[%clk 0:01:08]} 19. Bxc3 {[%clk
0:00:57.1]} 19... Qxc3 {[%clk 0:01:08]} 20. Ng4 {[%clk 0:00:57.1]} 20... g6
{[%clk 0:00:28.3]} 21. Rb3 {[%clk 0:00:55.8]} 21... Qd4 {[%clk 0:00:28]} 22. Rd1
{[%clk 0:00:56]} 22... Qf4 {[%clk 0:00:25.8]} 23. g3 {[%clk 0:00:51.2]} 23...
Qg5 {[%clk 0:00:08.7]} 24. h4 {[%clk 0:00:51.2]} 1-0

[Event "*** SCC Grand Prix: Titled Tuesday Blitz"]
[Site "Chess.com"]
[Date "2020.09.08"]
[Round "7"]
[White "Sultanasharminshirin"]
[Black "BJthechessgod"]
[Result "0-1"]
[WhiteElo "2000"]
[BlackElo "2218"]
[TimeControl "180+1"]
[EndTime "11:17:42 PDT"]
[Termination "BJthechessgod won on time"]

1. Nf3 {[%clk 0:03:00.9]} 1... c5 {[%clk 0:02:53.4]} 2. b3 {[%clk 0:02:52.9]}
2... Nc6 {[%clk 0:02:52.3]} 3. Bb2 {[%clk 0:02:52.9]} 3... d5 {[%clk 0:02:52]}
4. e3 {[%clk 0:02:52.6]} 4... Nf6 {[%clk 0:02:51.8]} 5. d4 {[%clk 0:02:50.9]}
5... Bg4 {[%clk 0:02:51.7]} 6. Nbd2 {[%clk 0:02:49.6]} 6... cxd4 {[%clk
0:02:49.1]} 7. exd4 {[%clk 0:02:47.6]} 7... Ne4 {[%clk 0:02:49.6]} 8. Be2 {[%clk
0:02:46.7]} 8... Nxd2 {[%clk 0:02:46.2]} 9. Qxd2 {[%clk 0:02:46.1]} 9... e6
{[%clk 0:02:45.1]} 10. O-O {[%clk 0:02:45.3]} 10... Bxf3 {[%clk 0:02:44.6]} 11.
Bxf3 {[%clk 0:02:44.4]} 11... Bd6 {[%clk 0:02:44.6]} 12. c4 {[%clk 0:02:43.1]}
12... dxc4 {[%clk 0:02:42.3]} 13. bxc4 {[%clk 0:02:42.4]} 13... O-O {[%clk
0:02:42.2]} 14. g3 {[%clk 0:02:32.8]} 14... e5 {[%clk 0:02:35.7]} 15. Bxc6
{[%clk 0:02:14.6]} 15... bxc6 {[%clk 0:02:33.7]} 16. dxe5 {[%clk 0:02:14.5]}
16... Bc7 {[%clk 0:02:26.4]} 17. Qe2 {[%clk 0:02:06.9]} 17... Qe7 {[%clk
0:02:20.6]} 18. Rfe1 {[%clk 0:02:03]} 18... Rfe8 {[%clk 0:02:16]} 19. Rad1
{[%clk 0:01:56.3]} 19... Rad8 {[%clk 0:02:14.7]} 20. Rxd8 {[%clk 0:01:54.4]}
20... Qxd8 {[%clk 0:02:15.6]} 21. Qc2 {[%clk 0:01:48.7]} 21... Bb8 {[%clk
0:02:03.2]} 22. Qe4 {[%clk 0:01:39.3]} 22... Qa5 {[%clk 0:02:00.9]} 23. Re2
{[%clk 0:01:22.9]} 23... Qa4 {[%clk 0:01:49.9]} 24. Qd4 {[%clk 0:01:15.4]} 24...
c5 {[%clk 0:01:45.6]} 25. Qc3 {[%clk 0:01:06.2]} 25... Qc6 {[%clk 0:01:33.1]}
26. e6 {[%clk 0:01:04.1]} 26... f6 {[%clk 0:01:33.3]} 27. Qe3 {[%clk 0:00:56.3]}
27... a6 {[%clk 0:01:13.8]} 28. f4 {[%clk 0:00:47.1]} 28... Qa4 {[%clk
0:01:07.1]} 29. Qb3 {[%clk 0:00:44.4]} 29... Qc6 {[%clk 0:01:04]} 30. Qe3 {[%clk
0:00:40.3]} 30... Qa4 {[%clk 0:01:03.7]} 0-1

[Event "*** SCC Grand Prix: Titled Tuesday Blitz"]
[Site "Chess.com"]
[Date "2020.09.08"]
[Round "7"]
[White "dopolian"]
[Black "indfraeng"]
[Result "1-0"]
[WhiteElo "2484"]
[BlackElo "2341"]
[TimeControl "180+1"]
[EndTime "11:17:44 PDT"]
[Termination "dopolian won by resignation"]

1. Nf3 {[%clk 0:03:00.9]} 1... Nf6 {[%clk 0:02:59.2]} 2. c4 {[%clk 0:03:01.3]}
2... c5 {[%clk 0:02:59.7]} 3. g3 {[%clk 0:03:01.5]} 3... d5 {[%clk 0:03:00.2]}
4. cxd5 {[%clk 0:03:00.5]} 4... Nxd5 {[%clk 0:03:01.1]} 5. Nc3 {[%clk
0:03:00.3]} 5... Nc7 {[%clk 0:03:00.9]} 6. Bg2 {[%clk 0:02:59.8]} 6... Nc6
{[%clk 0:03:01.4]} 7. O-O {[%clk 0:02:59.6]} 7... e5 {[%clk 0:03:01.9]} 8. Ne1
{[%clk 0:02:52.8]} 8... Be7 {[%clk 0:03:00]} 9. Bxc6+ {[%clk 0:02:52.2]} 9...
bxc6 {[%clk 0:02:59.2]} 10. Qa4 {[%clk 0:02:52.5]} 10... Bd7 {[%clk 0:02:33.9]}
11. Nd3 {[%clk 0:02:50.5]} 11... f6 {[%clk 0:02:31.1]} 12. b3 {[%clk 0:02:43.4]}
12... O-O {[%clk 0:02:30.8]} 13. Ba3 {[%clk 0:02:41.6]} 13... Ne6 {[%clk
0:02:28.4]} 14. Qc4 {[%clk 0:02:26.7]} 14... Kh8 {[%clk 0:02:20.4]} 15. Nxc5
{[%clk 0:02:22.5]} 15... Nxc5 {[%clk 0:02:21.3]} 16. Bxc5 {[%clk 0:02:22.9]}
16... Bxc5 {[%clk 0:02:22.2]} 17. Qxc5 {[%clk 0:02:23.8]} 17... Bh3 {[%clk
0:02:22.2]} 18. Rfd1 {[%clk 0:02:24.2]} 18... Bf5 {[%clk 0:02:20.2]} 19. Rac1
{[%clk 0:02:21]} 19... Rc8 {[%clk 0:02:17.7]} 20. d4 {[%clk 0:02:19.4]} 20...
exd4 {[%clk 0:02:09.1]} 21. Rxd4 {[%clk 0:02:20.3]} 21... Qb6 {[%clk 0:02:09.6]}
22. Na4 {[%clk 0:02:14.7]} 22... Qa6 {[%clk 0:02:03.8]} 23. Qc4 {[%clk
0:02:06.5]} 23... Qxc4 {[%clk 0:01:49.8]} 24. Rdxc4 {[%clk 0:02:01.9]} 24... Bd7
{[%clk 0:01:49.7]} 25. Nc5 {[%clk 0:02:00.9]} 25... Bf5 {[%clk 0:01:46.5]} 26.
e4 {[%clk 0:01:55.9]} 26... Bg6 {[%clk 0:01:45.1]} 27. f3 {[%clk 0:01:46.1]}
27... h5 {[%clk 0:01:42.5]} 28. Ne6 {[%clk 0:01:44.1]} 28... Bf7 {[%clk
0:01:34.6]} 29. Nxf8 {[%clk 0:01:42.7]} 29... Bxc4 {[%clk 0:01:33.8]} 30. Rxc4
{[%clk 0:01:38.7]} 30... Rxf8 {[%clk 0:01:33.8]} 31. Rxc6 {[%clk 0:01:39]} 31...
Rd8 {[%clk 0:01:34.4]} 32. Ra6 {[%clk 0:01:37.4]} 32... Rd7 {[%clk 0:01:30.3]}
33. Kf2 {[%clk 0:01:35.8]} 33... Kg8 {[%clk 0:01:26.6]} 34. h4 {[%clk
0:01:35.4]} 34... Kf7 {[%clk 0:01:27.5]} 35. Ke3 {[%clk 0:01:35.5]} 35... Ke7
{[%clk 0:01:26.3]} 36. Kf4 {[%clk 0:01:34.9]} 36... Kf7 {[%clk 0:01:25.9]} 37.
b4 {[%clk 0:01:34.7]} 37... Rb7 {[%clk 0:01:11.8]} 38. a3 {[%clk 0:01:35]} 38...
Ke7 {[%clk 0:01:10]} 39. Ra5 {[%clk 0:01:34.4]} 39... g6 {[%clk 0:01:09.3]} 40.
Ra6 {[%clk 0:01:32.3]} 40... Rc7 {[%clk 0:01:09.4]} 41. e5 {[%clk 0:01:27.5]}
41... Rc4+ {[%clk 0:01:06.6]} 42. Ke3 {[%clk 0:01:27.7]} 42... fxe5 {[%clk
0:01:02.7]} 43. Rxa7+ {[%clk 0:01:28]} 43... Kf6 {[%clk 0:01:03.1]} 44. b5
{[%clk 0:01:23.3]} 44... Rc3+ {[%clk 0:01:02.9]} 45. Ke4 {[%clk 0:01:23.3]}
45... Rb3 {[%clk 0:01:01.7]} 46. Ra6+ {[%clk 0:01:22.9]} 46... Kf7 {[%clk
0:01:01.4]} 47. a4 {[%clk 0:01:21.4]} 47... Kg7 {[%clk 0:01:00.2]} 48. Kxe5
{[%clk 0:01:21.4]} 48... Rxf3 {[%clk 0:00:59.6]} 49. b6 {[%clk 0:01:21.8]} 49...
Rxg3 {[%clk 0:00:58.8]} 50. b7 {[%clk 0:01:14.2]} 50... Rb3 {[%clk 0:00:58.4]}
51. Ra7 {[%clk 0:01:14.8]} 51... Kh6 {[%clk 0:00:58.2]} 52. a5 {[%clk
0:01:14.2]} 52... g5 {[%clk 0:00:57.4]} 53. hxg5+ {[%clk 0:01:15.1]} 53... Kxg5
{[%clk 0:00:57.9]} 54. a6 {[%clk 0:01:15.4]} 54... h4 {[%clk 0:00:57.1]} 55. Ra8
{[%clk 0:01:15.8]} 55... h3 {[%clk 0:00:49.6]} 56. b8=Q {[%clk 0:01:15.6]} 1-0

[Event "*** SCC Grand Prix: Titled Tuesday Blitz"]
[Site "Chess.com"]
[Date "2020.09.08"]
[Round "7"]
[White "Godzillator"]
[Black "UmarovSabir"]
[Result "0-1"]
[WhiteElo "2251"]
[BlackElo "2370"]
[TimeControl "180+1"]
[EndTime "11:17:52 PDT"]
[Termination "UmarovSabir won by resignation"]

1. d4 {[%clk 0:03:00.9]} 1... g6 {[%clk 0:02:57.9]} 2. c4 {[%clk 0:03:01.3]}
2... Bg7 {[%clk 0:02:57.3]} 3. e4 {[%clk 0:03:01.6]} 3... c6 {[%clk 0:02:56.7]}
4. Nc3 {[%clk 0:02:57.5]} 4... d6 {[%clk 0:02:56]} 5. Be3 {[%clk 0:02:55.8]}
5... a6 {[%clk 0:02:50.8]} 6. a4 {[%clk 0:02:55]} 6... a5 {[%clk 0:02:50.5]} 7.
Bd3 {[%clk 0:02:53.6]} 7... Na6 {[%clk 0:02:49.9]} 8. Rc1 {[%clk 0:02:53.3]}
8... Nb4 {[%clk 0:02:49.2]} 9. Bb1 {[%clk 0:02:53.5]} 9... Nf6 {[%clk
0:02:46.4]} 10. f3 {[%clk 0:02:52.5]} 10... O-O {[%clk 0:02:45]} 11. Qd2 {[%clk
0:02:52.6]} 11... e5 {[%clk 0:02:37.6]} 12. d5 {[%clk 0:02:51.6]} 12... c5
{[%clk 0:02:36.5]} 13. Nge2 {[%clk 0:02:50.8]} 13... Bd7 {[%clk 0:02:35.6]} 14.
g4 {[%clk 0:02:48.1]} 14... Ne8 {[%clk 0:02:16.7]} 15. h4 {[%clk 0:02:47.3]}
15... f5 {[%clk 0:01:54.4]} 16. gxf5 {[%clk 0:02:46.7]} 16... gxf5 {[%clk
0:01:54.1]} 17. Bg5 {[%clk 0:02:45.4]} 17... Qc7 {[%clk 0:01:27.5]} 18. exf5
{[%clk 0:02:44.5]} 18... Bxf5 {[%clk 0:01:26.2]} 19. Rg1 {[%clk 0:02:16.7]}
19... Bxb1 {[%clk 0:01:19.1]} 20. Rxb1 {[%clk 0:02:17.6]} 20... Kh8 {[%clk
0:01:18.1]} 21. f4 {[%clk 0:02:16.6]} 21... Qf7 {[%clk 0:01:04]} 22. Ne4 {[%clk
0:02:07.5]} 22... h6 {[%clk 0:00:36.2]} 23. f5 {[%clk 0:01:48]} 23... Qxf5
{[%clk 0:00:32.3]} 24. Bxh6 {[%clk 0:01:41.1]} 24... Qxe4 {[%clk 0:00:27.6]} 25.
Bxg7+ {[%clk 0:01:41.2]} 25... Nxg7 {[%clk 0:00:26.9]} 26. Qh6+ {[%clk
0:01:39.9]} 26... Qh7 {[%clk 0:00:26.3]} 27. Qxh7+ {[%clk 0:01:34.5]} 27... Kxh7
{[%clk 0:00:26.4]} 28. Nc3 {[%clk 0:01:30.9]} 28... Rf4 {[%clk 0:00:23.8]} 29.
Ke2 {[%clk 0:01:25.9]} 29... Rxc4 {[%clk 0:00:19.9]} 30. Rbf1 {[%clk 0:01:21.7]}
30... Rf4 {[%clk 0:00:16]} 31. Rxf4 {[%clk 0:01:20.6]} 31... exf4 {[%clk
0:00:16.2]} 32. Ne4 {[%clk 0:01:17.9]} 32... Nf5 {[%clk 0:00:14.7]} 33. Ng5+
{[%clk 0:01:14.9]} 33... Kg6 {[%clk 0:00:08.7]} 34. Ne6+ {[%clk 0:01:09.7]}
34... Kf6 {[%clk 0:00:08.5]} 35. Nxf4 {[%clk 0:01:09.5]} 35... Re8+ {[%clk
0:00:08.3]} 36. Kd2 {[%clk 0:01:09.5]} 36... Nxh4 {[%clk 0:00:08.4]} 37. Ne6
{[%clk 0:01:06.3]} 37... Nf3+ {[%clk 0:00:08.1]} 0-1